[Event "*** Titled Tuesday Blitz"]
[Site "Chess.com"]
[Date "2021.02.02"]
[Round "10"]
[White "chess4ever007"]
[Black "GiorgianBarbosa"]
[Result "0-1"]
[WhiteElo "2377"]
[BlackElo "2494"]
[TimeControl "180+1"]
[EndTime "11:55:28 PST"]
[Termination "GiorgianBarbosa won by resignation"]

1. e4 {[%clk 0:03:00.9]} 1... c6 {[%clk 0:02:59.8]} 2. Nf3 {[%clk 0:02:53.7]}
2... d5 {[%clk 0:03:00.7]} 3. Nc3 {[%clk 0:02:53.8]} 3... dxe4 {[%clk
0:03:00.6]} 4. Nxe4 {[%clk 0:02:53.7]} 4... Nf6 {[%clk 0:03:01.5]} 5. Ng3 {[%clk
0:02:44.6]} 5... Bg4 {[%clk 0:03:00.4]} 6. h3 {[%clk 0:02:43.6]} 6... Bxf3
{[%clk 0:03:00.7]} 7. Qxf3 {[%clk 0:02:44]} 7... g6 {[%clk 0:03:01.6]} 8. b3
{[%clk 0:02:23.6]} 8... Bg7 {[%clk 0:03:01.5]} 9. Bb2 {[%clk 0:02:23.9]} 9...
O-O {[%clk 0:03:01.6]} 10. h4 {[%clk 0:02:17.4]} 10... Qd5 {[%clk 0:02:58.1]}
11. Qxd5 {[%clk 0:02:10.9]} 11... cxd5 {[%clk 0:02:56.2]} 12. h5 {[%clk
0:02:04.3]} 12... Nc6 {[%clk 0:02:56.2]} 13. O-O-O {[%clk 0:01:53.2]} 13... Ng4
{[%clk 0:02:43.3]} 14. Bxg7 {[%clk 0:01:52.7]} 14... Kxg7 {[%clk 0:02:44.2]} 15.
Rh4 {[%clk 0:01:52.1]} 15... Nxf2 {[%clk 0:02:36.2]} 16. Re1 {[%clk 0:01:52.1]}
16... g5 {[%clk 0:02:15.1]} 17. Ra4 {[%clk 0:01:21.2]} 17... f5 {[%clk
0:01:48.9]} 18. c4 {[%clk 0:01:02.9]} 18... d4 {[%clk 0:01:39.8]} 19. c5 {[%clk
0:00:57.7]} 19... e5 {[%clk 0:01:27.6]} 20. Bb5 {[%clk 0:00:56.4]} 20... f4
{[%clk 0:01:22.3]} 21. Ne4 {[%clk 0:00:53.5]} 21... Nxe4 {[%clk 0:01:21.7]} 22.
Rxe4 {[%clk 0:00:53.9]} 22... Kf6 {[%clk 0:01:21.9]} 23. Bxc6 {[%clk 0:00:52.1]}
23... bxc6 {[%clk 0:01:22.8]} 24. Ra6 {[%clk 0:00:52.6]} 24... Rfc8 {[%clk
0:01:23.2]} 25. d3 {[%clk 0:00:52.3]} 25... Ke6 {[%clk 0:01:21.4]} 26. Kd2
{[%clk 0:00:51.4]} 26... Kd5 {[%clk 0:01:21.7]} 27. Ke2 {[%clk 0:00:51.7]} 27...
Rc7 {[%clk 0:01:21.2]} 28. Kf3 {[%clk 0:00:51.3]} 28... Re8 {[%clk 0:01:15.6]}
29. Ra5 {[%clk 0:00:50.2]} 29... h6 {[%clk 0:01:15.5]} 30. Kg4 {[%clk
0:00:49.4]} 30... Rf8 {[%clk 0:01:15.7]} 31. Re2 {[%clk 0:00:45.8]} 31... Rb8
{[%clk 0:01:14.1]} 32. Kf5 {[%clk 0:00:37.9]} 32... Rf8+ {[%clk 0:01:08.2]} 33.
Kg4 {[%clk 0:00:37.9]} 33... Re7 {[%clk 0:01:01.8]} 34. Re4 {[%clk 0:00:35.5]}
34... Ref7 {[%clk 0:00:57.9]} 35. b4 {[%clk 0:00:32.6]} 35... f3 {[%clk
0:00:52.3]} 36. gxf3 {[%clk 0:00:32.3]} 36... Rxf3 {[%clk 0:00:52.8]} 37. Rxa7
{[%clk 0:00:32.7]} 37... Rxd3 {[%clk 0:00:49.8]} 38. Rd7+ {[%clk 0:00:29.8]}
38... Kxe4 {[%clk 0:00:48.6]} 0-1

[Event "*** Titled Tuesday Blitz"]
[Site "Chess.com"]
[Date "2021.02.02"]
[Round "10"]
[White "SHIVACalypso"]
[Black "Pantata007"]
[Result "0-1"]
[WhiteElo "2356"]
[BlackElo "2250"]
[TimeControl "180+1"]
[EndTime "11:55:29 PST"]
[Termination "Pantata007 won by resignation"]

1. Nf3 {[%clk 0:03:00.9]} 1... d5 {[%clk 0:02:59.8]} 2. c4 {[%clk 0:03:01.7]}
2... d4 {[%clk 0:02:59.4]} 3. e3 {[%clk 0:03:01.2]} 3... Nc6 {[%clk 0:02:59.2]}
4. exd4 {[%clk 0:03:00.1]} 4... Nxd4 {[%clk 0:03:00.1]} 5. Nxd4 {[%clk 0:03:01]}
5... Qxd4 {[%clk 0:03:00.7]} 6. Nc3 {[%clk 0:03:01.3]} 6... e5 {[%clk
0:03:00.9]} 7. Nd5 {[%clk 0:02:49.4]} 7... Bd6 {[%clk 0:02:44.3]} 8. d3 {[%clk
0:02:43.4]} 8... c6 {[%clk 0:02:32.2]} 9. Nc3 {[%clk 0:02:39.1]} 9... Bg4 {[%clk
0:02:19.4]} 10. Be2 {[%clk 0:02:33.7]} 10... Nf6 {[%clk 0:02:04.1]} 11. Be3
{[%clk 0:02:32]} 11... Bxe2 {[%clk 0:02:03.4]} 12. Qxe2 {[%clk 0:02:32.9]} 12...
Qh4 {[%clk 0:01:59.9]} 13. d4 {[%clk 0:02:21.8]} 13... O-O {[%clk 0:01:53.4]}
14. d5 {[%clk 0:02:05.6]} 14... cxd5 {[%clk 0:01:47.7]} 15. cxd5 {[%clk
0:02:05.1]} 15... Bb4 {[%clk 0:01:20.2]} 16. Rd1 {[%clk 0:01:55.5]} 16... Rfd8
{[%clk 0:01:17.4]} 17. d6 {[%clk 0:01:46.7]} 17... Ne4 {[%clk 0:01:07.1]} 18.
Qc4 {[%clk 0:01:43.8]} 18... Bxc3+ {[%clk 0:00:41.8]} 19. bxc3 {[%clk
0:01:42.7]} 19... Rac8 {[%clk 0:00:39.6]} 20. Qb4 {[%clk 0:01:34.3]} 20... a5
{[%clk 0:00:17.7]} 21. Qxb7 {[%clk 0:01:32.7]} 21... Nxc3 {[%clk 0:00:15.9]} 22.
Rc1 {[%clk 0:01:20.4]} 22... Qc4 {[%clk 0:00:12.4]} 23. Qb2 {[%clk 0:01:04.4]}
23... Rxd6 {[%clk 0:00:08.1]} 24. f3 {[%clk 0:00:58.2]} 24... Rd3 {[%clk
0:00:07.3]} 25. Kf2 {[%clk 0:00:57.6]} 25... Rxe3 {[%clk 0:00:06.8]} 26. Rhd1
{[%clk 0:00:51.9]} 26... Re2+ {[%clk 0:00:06]} 27. Qxe2 {[%clk 0:00:49.3]} 27...
Qxe2+ {[%clk 0:00:06]} 28. Kg1 {[%clk 0:00:49.1]} 28... Qxd1+ {[%clk 0:00:06.1]}
0-1

[Event "*** Titled Tuesday Blitz"]
[Site "Chess.com"]
[Date "2021.02.02"]
[Round "10"]
[White "Artem_Sadovsky"]
[Black "GMaka"]
[Result "1-0"]
[WhiteElo "2563"]
[BlackElo "2423"]
[TimeControl "180+1"]
[EndTime "11:55:31 PST"]
[Termination "Artem_Sadovsky won by resignation"]

1. Nf3 {[%clk 0:03:00.9]} 1... c5 {[%clk 0:02:58.3]} 2. b3 {[%clk 0:02:59.6]}
2... Nc6 {[%clk 0:02:57]} 3. Bb2 {[%clk 0:02:58]} 3... d6 {[%clk 0:02:57.9]} 4.
e3 {[%clk 0:02:57.4]} 4... e5 {[%clk 0:02:57.6]} 5. d4 {[%clk 0:02:57.3]} 5...
cxd4 {[%clk 0:02:56.8]} 6. exd4 {[%clk 0:02:57.4]} 6... e4 {[%clk 0:02:57.7]} 7.
Nfd2 {[%clk 0:02:42.7]} 7... d5 {[%clk 0:02:57.4]} 8. Be2 {[%clk 0:02:42.3]}
8... Bd6 {[%clk 0:02:54.2]} 9. c4 {[%clk 0:02:40.9]} 9... Nge7 {[%clk
0:02:53.8]} 10. Nc3 {[%clk 0:02:36.8]} 10... Nxd4 {[%clk 0:02:50.1]} 11. Ndxe4
{[%clk 0:02:35.9]} 11... Nxe2 {[%clk 0:02:39.3]} 12. Nxd6+ {[%clk 0:02:34.4]}
12... Qxd6 {[%clk 0:02:40.2]} 13. Qxe2 {[%clk 0:02:32.7]} 13... O-O {[%clk
0:02:14.3]} 14. O-O-O {[%clk 0:02:07.8]} 14... Qh6+ {[%clk 0:02:06.7]} 15. Kb1
{[%clk 0:02:06.6]} 15... Bf5+ {[%clk 0:02:03.5]} 16. Ka1 {[%clk 0:02:06.2]}
16... Rfe8 {[%clk 0:02:02.5]} 17. Rhe1 {[%clk 0:02:03.9]} 17... Bd7 {[%clk
0:01:07.5]} 18. Qf3 {[%clk 0:01:52.1]} 18... d4 {[%clk 0:00:39.9]} 19. Rxd4
{[%clk 0:01:42.2]} 19... Bc6 {[%clk 0:00:40.2]} 20. Qg4 {[%clk 0:01:00.7]} 20...
Qxh2 {[%clk 0:00:26.9]} 21. Nd5 {[%clk 0:00:43.8]} 21... Ng6 {[%clk 0:00:26.8]}
22. Rde4 {[%clk 0:00:33.6]} 22... Rxe4 {[%clk 0:00:25.4]} 23. Qxe4 {[%clk
0:00:34.4]} 23... h6 {[%clk 0:00:13.3]} 24. Qd4 {[%clk 0:00:34.1]} 24... f6
{[%clk 0:00:11]} 25. Nxf6+ {[%clk 0:00:34.6]} 25... gxf6 {[%clk 0:00:09]} 26.
Qxf6 {[%clk 0:00:35.3]} 26... Qc7 {[%clk 0:00:09.5]} 1-0

[Event "*** Titled Tuesday Blitz"]
[Site "Chess.com"]
[Date "2021.02.02"]
[Round "10"]
[White "Shepherdboy"]
[Black "Vanina1989"]
[Result "1-0"]
[WhiteElo "2465"]
[BlackElo "2687"]
[TimeControl "180+1"]
[EndTime "11:55:34 PST"]
[Termination "Shepherdboy won by resignation"]

1. d4 {[%clk 0:03:00.9]} 1... d5 {[%clk 0:02:59.5]} 2. Bf4 {[%clk 0:02:59.8]}
2... Nf6 {[%clk 0:02:58]} 3. e3 {[%clk 0:03:00.1]} 3... c5 {[%clk 0:02:55.1]} 4.
c3 {[%clk 0:02:59.6]} 4... Nc6 {[%clk 0:02:54.8]} 5. Nd2 {[%clk 0:02:58.5]} 5...
cxd4 {[%clk 0:02:52.2]} 6. exd4 {[%clk 0:02:59]} 6... Bg4 {[%clk 0:02:48.2]} 7.
Qb3 {[%clk 0:02:51.8]} 7... Na5 {[%clk 0:02:46.6]} 8. Qa4+ {[%clk 0:02:51.5]}
8... Bd7 {[%clk 0:02:45.8]} 9. Bb5 {[%clk 0:02:43.9]} 9... Nc6 {[%clk
0:02:43.9]} 10. Ngf3 {[%clk 0:02:40.7]} 10... a6 {[%clk 0:02:42.6]} 11. Be2
{[%clk 0:02:35.2]} 11... e6 {[%clk 0:02:18.4]} 12. h3 {[%clk 0:02:34.6]} 12...
Be7 {[%clk 0:02:17.7]} 13. Qd1 {[%clk 0:02:28]} 13... O-O {[%clk 0:02:17.4]} 14.
O-O {[%clk 0:02:27.7]} 14... b5 {[%clk 0:02:17.6]} 15. Bd3 {[%clk 0:02:24.3]}
15... b4 {[%clk 0:02:16.7]} 16. Re1 {[%clk 0:02:19.4]} 16... bxc3 {[%clk
0:02:16.1]} 17. bxc3 {[%clk 0:02:20.3]} 17... Qa5 {[%clk 0:02:16.1]} 18. Re3
{[%clk 0:02:13.6]} 18... Rfc8 {[%clk 0:02:13.4]} 19. Nb3 {[%clk 0:02:08.3]}
19... Qa3 {[%clk 0:02:08.8]} 20. Ne5 {[%clk 0:02:05.1]} 20... Be8 {[%clk
0:02:03.8]} 21. Ng4 {[%clk 0:01:59.3]} 21... Na5 {[%clk 0:01:45.4]} 22. Rg3
{[%clk 0:01:49.4]} 22... Ne4 {[%clk 0:01:26.9]} 23. Bxe4 {[%clk 0:01:37.2]}
23... dxe4 {[%clk 0:01:26.6]} 24. Bc1 {[%clk 0:01:09.4]} 24... Qd6 {[%clk
0:01:19.8]} 25. Nxa5 {[%clk 0:01:07.4]} 25... Bh4 {[%clk 0:01:13.6]} 26. Nh6+
{[%clk 0:00:56.5]} 26... Kf8 {[%clk 0:01:08.1]} 27. Nb7 {[%clk 0:00:51]} 27...
Qe7 {[%clk 0:00:54.7]} 28. Rxg7 {[%clk 0:00:45.2]} 28... Kxg7 {[%clk 0:00:32.1]}
29. Qg4+ {[%clk 0:00:45.2]} 29... Bg5 {[%clk 0:00:32.4]} 30. Bxg5 {[%clk
0:00:43.4]} 30... f5 {[%clk 0:00:32.1]} 31. Qg3 {[%clk 0:00:40.8]} 31... Qxb7
{[%clk 0:00:27]} 32. Qe5+ {[%clk 0:00:35.2]} 32... Kg6 {[%clk 0:00:20.1]} 33.
Qf6+ {[%clk 0:00:35.3]} 1-0

[Event "*** Titled Tuesday Blitz"]
[Site "Chess.com"]
[Date "2021.02.02"]
[Round "10"]
[White "Savagelittlemole"]
[Black "dukicz123"]
[Result "0-1"]
[WhiteElo "2456"]
[BlackElo "2587"]
[TimeControl "180+1"]
[EndTime "11:55:34 PST"]
[Termination "dukicz123 won on time"]

1. e4 {[%clk 0:03:00.9]} 1... e5 {[%clk 0:03:00.1]} 2. Nf3 {[%clk 0:03:00]} 2...
Nc6 {[%clk 0:03:00.7]} 3. Bb5 {[%clk 0:03:00]} 3... a6 {[%clk 0:03:01.1]} 4. Ba4
{[%clk 0:03:00.5]} 4... Nf6 {[%clk 0:03:01.4]} 5. O-O {[%clk 0:03:01.2]} 5...
Be7 {[%clk 0:03:01.9]} 6. Re1 {[%clk 0:03:01.5]} 6... b5 {[%clk 0:03:02.3]} 7.
Bb3 {[%clk 0:03:01.5]} 7... O-O {[%clk 0:03:03.2]} 8. h3 {[%clk 0:03:01.1]} 8...
Bb7 {[%clk 0:03:03.4]} 9. d3 {[%clk 0:03:01.2]} 9... d5 {[%clk 0:03:03.7]} 10.
exd5 {[%clk 0:02:58.1]} 10... Nxd5 {[%clk 0:03:04.6]} 11. Nbd2 {[%clk
0:02:57.6]} 11... Nd4 {[%clk 0:02:39.7]} 12. Nxe5 {[%clk 0:02:46.6]} 12... c5
{[%clk 0:01:55.4]} 13. Ndf3 {[%clk 0:02:20.8]} 13... Nxb3 {[%clk 0:01:51.9]} 14.
axb3 {[%clk 0:02:20.2]} 14... Bd6 {[%clk 0:01:51.9]} 15. Bd2 {[%clk 0:01:51.9]}
15... Qc7 {[%clk 0:01:50.9]} 16. Ba5 {[%clk 0:01:46.8]} 16... Qc8 {[%clk
0:01:46]} 17. d4 {[%clk 0:01:38.7]} 17... Nf4 {[%clk 0:01:37.7]} 18. dxc5 {[%clk
0:01:12.2]} 18... Bxc5 {[%clk 0:01:38]} 19. Qc1 {[%clk 0:00:57.2]} 19... Qf5
{[%clk 0:01:27.3]} 20. Bc7 {[%clk 0:00:12.4]} 20... Nxh3+ {[%clk 0:01:18.7]} 21.
gxh3 {[%clk 0:00:12.6]} 21... Bxf3 {[%clk 0:01:19.6]} 22. Nxf3 {[%clk
0:00:07.6]} 22... Qxf3 {[%clk 0:01:20.5]} 23. Qd2 {[%clk 0:00:05.1]} 23... Qxh3
{[%clk 0:01:12.3]} 24. Qc3 {[%clk 0:00:04.8]} 24... Qf5 {[%clk 0:00:51.2]} 25.
Bg3 {[%clk 0:00:03.4]} 25... Rac8 {[%clk 0:00:49.8]} 26. Qd2 {[%clk 0:00:01.5]}
26... Qf3 {[%clk 0:00:46.5]} 27. Qe2 {[%clk 0:00:01.9]} 27... Qxg3+ {[%clk
0:00:46.4]} 28. Kf1 {[%clk 0:00:01.9]} 28... Qh3+ {[%clk 0:00:46.7]} 29. Kg1
{[%clk 0:00:02.3]} 29... Rc6 {[%clk 0:00:47.2]} 0-1

[Event "*** Titled Tuesday Blitz"]
[Site "Chess.com"]
[Date "2021.02.02"]
[Round "10"]
[White "TeukkaSalama"]
[Black "zeitnot2006"]
[Result "1-0"]
[WhiteElo "2378"]
[BlackElo "2518"]
[TimeControl "180+1"]
[EndTime "11:55:36 PST"]
[Termination "TeukkaSalama won on time"]

1. d4 {[%clk 0:03:00.9]} 1... e6 {[%clk 0:02:58.4]} 2. Bf4 {[%clk 0:03:01.2]}
2... g5 {[%clk 0:02:55.5]} 3. Bc1 {[%clk 0:02:59.3]} 3... Bg7 {[%clk 0:02:53.8]}
4. c3 {[%clk 0:02:58.6]} 4... b6 {[%clk 0:02:50.6]} 5. e4 {[%clk 0:02:57.9]}
5... Bb7 {[%clk 0:02:50.3]} 6. Bd3 {[%clk 0:02:57.2]} 6... d6 {[%clk 0:02:43.5]}
7. Qe2 {[%clk 0:02:55]} 7... Nd7 {[%clk 0:02:42.9]} 8. f3 {[%clk 0:02:49.8]}
8... h6 {[%clk 0:02:39.3]} 9. Nh3 {[%clk 0:02:48.8]} 9... Ne7 {[%clk 0:02:38.7]}
10. Nf2 {[%clk 0:02:48.9]} 10... Ng6 {[%clk 0:02:38.2]} 11. g3 {[%clk
0:02:47.6]} 11... c5 {[%clk 0:02:38.3]} 12. Be3 {[%clk 0:02:44.3]} 12... Qe7
{[%clk 0:02:33.3]} 13. Nd2 {[%clk 0:02:43.4]} 13... a6 {[%clk 0:02:05.2]} 14. a4
{[%clk 0:02:42]} 14... O-O {[%clk 0:01:53.3]} 15. h4 {[%clk 0:02:35.5]} 15... f5
{[%clk 0:01:47.2]} 16. hxg5 {[%clk 0:02:18]} 16... hxg5 {[%clk 0:01:41.6]} 17.
f4 {[%clk 0:02:09.7]} 17... g4 {[%clk 0:01:26.4]} 18. Rh2 {[%clk 0:01:50.3]}
18... e5 {[%clk 0:00:46.6]} 19. fxe5 {[%clk 0:01:29.1]} 19... dxe5 {[%clk
0:00:34]} 20. Bc4+ {[%clk 0:01:25.5]} 20... Rf7 {[%clk 0:00:31.2]} 21. exf5
{[%clk 0:01:15.9]} 21... exd4 {[%clk 0:00:22.9]} 22. cxd4 {[%clk 0:01:03.8]}
22... cxd4 {[%clk 0:00:19.2]} 23. fxg6 {[%clk 0:00:55]} 23... dxe3 {[%clk
0:00:18]} 24. gxf7+ {[%clk 0:00:49.6]} 24... Kf8 {[%clk 0:00:18.3]} 25. Kf1
{[%clk 0:00:34]} 25... exd2 {[%clk 0:00:06.9]} 26. Qxg4 {[%clk 0:00:33.6]} 26...
Ne5 {[%clk 0:00:05.7]} 27. Rh8+ {[%clk 0:00:32.9]} 1-0

[Event "*** Titled Tuesday Blitz"]
[Site "Chess.com"]
[Date "2021.02.02"]
[Round "10"]
[White "Manukyan_Artak"]
[Black "novocane"]
[Result "0-1"]
[WhiteElo "2387"]
[BlackElo "2271"]
[TimeControl "180+1"]
[EndTime "11:55:36 PST"]
[Termination "novocane won by resignation"]

1. e4 {[%clk 0:02:55.8]} 1... c5 {[%clk 0:02:59.6]} 2. Nf3 {[%clk 0:02:55.3]}
2... Nc6 {[%clk 0:03:00]} 3. c3 {[%clk 0:02:55.2]} 3... Nf6 {[%clk 0:03:00.4]}
4. e5 {[%clk 0:02:55.1]} 4... Nd5 {[%clk 0:03:00.8]} 5. d4 {[%clk 0:02:55.6]}
5... cxd4 {[%clk 0:03:01.7]} 6. cxd4 {[%clk 0:02:56.4]} 6... d6 {[%clk
0:03:01.7]} 7. Nc3 {[%clk 0:02:57.3]} 7... Nxc3 {[%clk 0:03:01.3]} 8. bxc3
{[%clk 0:02:58.2]} 8... d5 {[%clk 0:03:01.9]} 9. h3 {[%clk 0:02:55.3]} 9... Bf5
{[%clk 0:03:00.3]} 10. g4 {[%clk 0:02:52.1]} 10... Be4 {[%clk 0:02:55.8]} 11.
Bd3 {[%clk 0:02:45.5]} 11... Qa5 {[%clk 0:02:38.6]} 12. Bb2 {[%clk 0:02:38.8]}
12... Bxf3 {[%clk 0:02:10.7]} 13. Qxf3 {[%clk 0:02:29.8]} 13... Nxd4 {[%clk
0:02:10.4]} 14. Qd1 {[%clk 0:02:23.1]} 14... Nc6 {[%clk 0:02:09.5]} 15. O-O
{[%clk 0:02:22.6]} 15... e6 {[%clk 0:02:06.8]} 16. f4 {[%clk 0:02:21.9]} 16...
Qb6+ {[%clk 0:02:00.3]} 17. Rf2 {[%clk 0:02:21.8]} 17... Bc5 {[%clk 0:02:00.4]}
18. Qe2 {[%clk 0:02:20.9]} 18... Bxf2+ {[%clk 0:01:58.7]} 19. Qxf2 {[%clk
0:02:21.8]} 19... Qxf2+ {[%clk 0:01:58.3]} 20. Kxf2 {[%clk 0:02:22.7]} 20... g5
{[%clk 0:01:53.2]} 21. c4 {[%clk 0:02:16.3]} 21... dxc4 {[%clk 0:01:45.6]} 22.
Bxc4 {[%clk 0:02:16.6]} 22... gxf4 {[%clk 0:01:45.6]} 23. Kf3 {[%clk 0:02:15.8]}
23... O-O-O {[%clk 0:01:42.6]} 24. Rc1 {[%clk 0:02:10.8]} 24... Rd2 {[%clk
0:01:27.7]} 25. Bc3 {[%clk 0:02:03]} 25... Rh2 {[%clk 0:01:10.6]} 26. Kxf4
{[%clk 0:01:58.4]} 26... Rxh3 {[%clk 0:01:09]} 27. Kg5 {[%clk 0:01:57.5]} 27...
Rf3 {[%clk 0:00:58.9]} 28. Kh6 {[%clk 0:01:36.9]} 28... Rg8 {[%clk 0:00:52.8]}
29. Bf1 {[%clk 0:01:14.8]} 29... Rf2 {[%clk 0:00:33.3]} 30. Kxh7 {[%clk
0:00:53.8]} 30... Rxg4 {[%clk 0:00:31.4]} 31. Bd2 {[%clk 0:00:48.4]} 31... Rh2+
{[%clk 0:00:28.4]} 32. Bh6 {[%clk 0:00:47.7]} 32... Rgh4 {[%clk 0:00:28.5]} 33.
Kg7 {[%clk 0:00:48]} 33... Rxh6 {[%clk 0:00:28.4]} 34. Kxf7 {[%clk 0:00:48.9]}
34... Rf2+ {[%clk 0:00:25.9]} 35. Kg7 {[%clk 0:00:46.6]} 35... Rh1 {[%clk
0:00:25.6]} 0-1

[Event "*** Titled Tuesday Blitz"]
[Site "Chess.com"]
[Date "2021.02.02"]
[Round "10"]
[White "ketster"]
[Black "mshuaau0"]
[Result "1-0"]
[WhiteElo "2399"]
[BlackElo "2278"]
[TimeControl "180+1"]
[EndTime "11:55:37 PST"]
[Termination "ketster won by resignation"]

1. d4 {[%clk 0:02:58.6]} 1... e6 {[%clk 0:02:59.5]} 2. c4 {[%clk 0:02:57.9]}
2... d5 {[%clk 0:02:59.7]} 3. Nf3 {[%clk 0:02:57.1]} 3... Nf6 {[%clk 0:03:00.1]}
4. g3 {[%clk 0:02:56.2]} 4... a6 {[%clk 0:02:58.9]} 5. Bg2 {[%clk 0:02:55.9]}
5... dxc4 {[%clk 0:02:58.4]} 6. O-O {[%clk 0:02:55.3]} 6... Nc6 {[%clk
0:02:56.8]} 7. e3 {[%clk 0:02:54.8]} 7... Rb8 {[%clk 0:02:52.3]} 8. b3 {[%clk
0:02:54.3]} 8... cxb3 {[%clk 0:02:51.7]} 9. axb3 {[%clk 0:02:50.8]} 9... Bb4
{[%clk 0:02:50.3]} 10. Bb2 {[%clk 0:02:41.4]} 10... O-O {[%clk 0:02:48.6]} 11.
Qc2 {[%clk 0:02:39.9]} 11... Qe7 {[%clk 0:02:39.4]} 12. Nbd2 {[%clk 0:02:37.3]}
12... Bxd2 {[%clk 0:02:38.2]} 13. Nxd2 {[%clk 0:02:33.6]} 13... Rd8 {[%clk
0:02:34.1]} 14. Nc4 {[%clk 0:02:26.2]} 14... Nb4 {[%clk 0:02:30]} 15. Qe2 {[%clk
0:02:25.4]} 15... b5 {[%clk 0:02:22.4]} 16. Na5 {[%clk 0:02:23.7]} 16... c5
{[%clk 0:02:18.1]} 17. Ba3 {[%clk 0:02:18.8]} 17... Nfd5 {[%clk 0:01:49.5]} 18.
Rfc1 {[%clk 0:02:12]} 18... Bd7 {[%clk 0:01:13.7]} 19. Rxc5 {[%clk 0:02:05.4]}
19... Rdc8 {[%clk 0:01:14]} 20. Bxd5 {[%clk 0:01:57.6]} 20... Rxc5 {[%clk
0:01:09.8]} 21. Bxb4 {[%clk 0:01:37]} 21... Rc1+ {[%clk 0:01:06.6]} 22. Rxc1
{[%clk 0:01:36.2]} 22... Qxb4 {[%clk 0:01:07.2]} 23. Nc6 {[%clk 0:01:36.1]}
23... Qd6 {[%clk 0:00:46.1]} 24. Nxb8 {[%clk 0:01:29.5]} 24... Qxb8 {[%clk
0:00:45.4]} 25. Bf3 {[%clk 0:01:27.4]} 25... g6 {[%clk 0:00:45]} 26. Qc2 {[%clk
0:01:27.1]} 26... Kg7 {[%clk 0:00:37.4]} 27. Qc7 {[%clk 0:01:26.5]} 27... Qe8
{[%clk 0:00:37.3]} 28. Bc6 {[%clk 0:01:24.4]} 28... Bxc6 {[%clk 0:00:37.4]} 29.
Rxc6 {[%clk 0:01:22.7]} 29... Qf8 {[%clk 0:00:37.6]} 30. Qd6 {[%clk 0:01:21.3]}
30... Qa8 {[%clk 0:00:29.6]} 31. e4 {[%clk 0:01:17.9]} 31... a5 {[%clk
0:00:28.5]} 32. Qe5+ {[%clk 0:01:16.9]} 32... Kg8 {[%clk 0:00:20.5]} 33. Qxb5
{[%clk 0:01:16.8]} 33... Qd8 {[%clk 0:00:17.6]} 34. Qc5 {[%clk 0:01:15.5]} 34...
Kg7 {[%clk 0:00:14.3]} 35. d5 {[%clk 0:01:14.5]} 35... exd5 {[%clk 0:00:14.1]}
36. Qxd5 {[%clk 0:01:14.6]} 36... Qb8 {[%clk 0:00:13.4]} 37. e5 {[%clk
0:01:13.7]} 37... Qb4 {[%clk 0:00:12.6]} 38. Rc7 {[%clk 0:01:11.2]} 38... Qe1+
{[%clk 0:00:11.1]} 39. Kg2 {[%clk 0:01:10.7]} 39... Qe4+ {[%clk 0:00:11.3]} 40.
Qxe4 {[%clk 0:01:10]} 1-0

[Event "*** Titled Tuesday Blitz"]
[Site "Chess.com"]
[Date "2021.02.02"]
[Round "10"]
[White "BahadirOzen"]
[Black "Aradej"]
[Result "1-0"]
[WhiteElo "2727"]
[BlackElo "2549"]
[TimeControl "180+1"]
[EndTime "11:55:38 PST"]
[Termination "BahadirOzen won by resignation"]

1. g3 {[%clk 0:03:00.9]} 1... d5 {[%clk 0:02:59.1]} 2. Bg2 {[%clk 0:03:01.3]}
2... Nf6 {[%clk 0:02:59.5]} 3. d3 {[%clk 0:03:01.3]} 3... c6 {[%clk 0:02:59.7]}
4. Nd2 {[%clk 0:03:00.3]} 4... e5 {[%clk 0:02:55]} 5. e4 {[%clk 0:03:00.2]} 5...
Bd6 {[%clk 0:02:55]} 6. Ngf3 {[%clk 0:03:00.3]} 6... O-O {[%clk 0:02:54.7]} 7.
O-O {[%clk 0:03:00.9]} 7... Re8 {[%clk 0:02:54.8]} 8. Re1 {[%clk 0:03:00.5]}
8... Nbd7 {[%clk 0:02:54.9]} 9. b3 {[%clk 0:03:00]} 9... a5 {[%clk 0:02:52.1]}
10. a3 {[%clk 0:03:00]} 10... b6 {[%clk 0:02:52.2]} 11. Bb2 {[%clk 0:03:00]}
11... Bb7 {[%clk 0:02:52.5]} 12. c3 {[%clk 0:02:46.4]} 12... Qc7 {[%clk
0:02:51.7]} 13. Qc2 {[%clk 0:02:45.2]} 13... Rad8 {[%clk 0:02:51]} 14. b4 {[%clk
0:02:44.6]} 14... h6 {[%clk 0:02:32.8]} 15. Rad1 {[%clk 0:02:38]} 15... Bf8
{[%clk 0:02:25.8]} 16. Qb3 {[%clk 0:02:27.3]} 16... axb4 {[%clk 0:02:20.2]} 17.
cxb4 {[%clk 0:02:22.2]} 17... c5 {[%clk 0:02:19.6]} 18. Rc1 {[%clk 0:02:16.3]}
18... dxe4 {[%clk 0:02:15.7]} 19. dxe4 {[%clk 0:02:12.5]} 19... Qb8 {[%clk
0:02:15.7]} 20. b5 {[%clk 0:02:12.2]} 20... Qa8 {[%clk 0:02:14.7]} 21. Nh4
{[%clk 0:02:08.3]} 21... Nh7 {[%clk 0:01:54.4]} 22. Nc4 {[%clk 0:02:05.6]} 22...
Ng5 {[%clk 0:01:47.8]} 23. f3 {[%clk 0:01:42.1]} 23... Qb8 {[%clk 0:01:46.7]}
24. Nf5 {[%clk 0:01:38.7]} 24... Ne6 {[%clk 0:01:46.6]} 25. Nfe3 {[%clk
0:01:29.5]} 25... Nd4 {[%clk 0:01:46.2]} 26. Qa2 {[%clk 0:01:24.9]} 26... Qa7
{[%clk 0:01:41.4]} 27. Bc3 {[%clk 0:01:20.4]} 27... Nf6 {[%clk 0:01:40.1]} 28.
Qb2 {[%clk 0:01:14.6]} 28... Ra8 {[%clk 0:01:35.9]} 29. a4 {[%clk 0:01:11.6]}
29... Rab8 {[%clk 0:01:31.8]} 30. Ra1 {[%clk 0:01:10.4]} 30... Ba8 {[%clk
0:01:30]} 31. Red1 {[%clk 0:01:08.8]} 31... Qc7 {[%clk 0:01:28.5]} 32. Ra2
{[%clk 0:00:57.7]} 32... Red8 {[%clk 0:01:28.3]} 33. Kh1 {[%clk 0:00:56.5]}
33... Ne8 {[%clk 0:01:22.9]} 34. Raa1 {[%clk 0:00:53.5]} 34... Nd6 {[%clk
0:01:21.8]} 35. Nxd6 {[%clk 0:00:52]} 35... Qxd6 {[%clk 0:01:20.7]} 36. Nc4
{[%clk 0:00:52.9]} 36... Qc7 {[%clk 0:01:20]} 37. a5 {[%clk 0:00:50.3]} 37...
bxa5 {[%clk 0:01:19.5]} 38. Bxa5 {[%clk 0:00:50.1]} 38... Qe7 {[%clk 0:01:09.4]}
39. Bxd8 {[%clk 0:00:50.3]} 39... Rxd8 {[%clk 0:01:09.6]} 40. b6 {[%clk
0:00:47.1]} 40... Rb8 {[%clk 0:01:09.4]} 41. Qa2 {[%clk 0:00:45.8]} 41... Qf6
{[%clk 0:01:05.8]} 42. Qxa8 {[%clk 0:00:32.6]} 42... Rxa8 {[%clk 0:01:01.9]} 43.
Rxa8 {[%clk 0:00:33.5]} 43... Qe6 {[%clk 0:00:59.5]} 44. b7 {[%clk 0:00:30.2]}
44... Nc6 {[%clk 0:00:59.2]} 45. Na5 {[%clk 0:00:26.6]} 1-0